{"text_format":"3","workbook":"xlsx","n_sheets":1,"sheets":["Listă de cumpărături"],"not_rendered":{"images":1,"external_links":1,"defined_names":3},"read":"whole","date_system":"1900"}

{"sheet":"Listă de cumpărături","index":0,"n_rows":31,"n_cols":8,"rows_kept":31,"merged":[[1,1,1,2]]}
[null,"Listă de cumpărături"]
[null,"DATA"]
[null,"Gata?","Articol","Categorie","Cantitate","Preț","Preț extins","Brand/Comentarii"]
[null,null,"Portocale","Legume și fructe",null,null,{"$f":"IFERROR(SUM(ListăDeCumpărături[Cantitate]*ListăDeCumpărături[Preț]), \"\")","v":{"v":0,"d":"0.00 lei"}}]
[null,null,"Mere","Legume și fructe",null,null,{"$f":"IFERROR(SUM(ListăDeCumpărături[Cantitate]*ListăDeCumpărături[Preț]), \"\")","v":{"v":0,"d":"0.00 lei"}}]
[null,null,"Banane","Legume și fructe",null,null,{"$f":"IFERROR(SUM(ListăDeCumpărături[Cantitate]*ListăDeCumpărături[Preț]), \"\")","v":{"v":0,"d":"0.00 lei"}}]
[null,null,"Salată verde","Legume și fructe",null,null,{"$f":"IFERROR(SUM(ListăDeCumpărături[Cantitate]*ListăDeCumpărături[Preț]), \"\")","v":{"v":0,"d":"0.00 lei"}}]
[null,null,"Roșii","Legume și fructe",null,null,{"$f":"IFERROR(SUM(ListăDeCumpărături[Cantitate]*ListăDeCumpărături[Preț]), \"\")","v":{"v":0,"d":"0.00 lei"}},"  "]
[null,null,"Lapte ","Produse lactate",null,null,{"$f":"IFERROR(SUM(ListăDeCumpărături[Cantitate]*ListăDeCumpărături[Preț]), \"\")","v":{"v":0,"d":"0.00 lei"}}]
[null,null,"Brânză","Produse lactate",null,null,{"$f":"IFERROR(SUM(ListăDeCumpărături[Cantitate]*ListăDeCumpărături[Preț]), \"\")","v":{"v":0,"d":"0.00 lei"}}]
[null,null,"Ouă","Produse lactate",null,null,{"$f":"IFERROR(SUM(ListăDeCumpărături[Cantitate]*ListăDeCumpărături[Preț]), \"\")","v":{"v":0,"d":"0.00 lei"}}]
[null,null,"Brânză de vaci","Produse lactate",null,null,{"$f":"IFERROR(SUM(ListăDeCumpărături[Cantitate]*ListăDeCumpărături[Preț]), \"\")","v":{"v":0,"d":"0.00 lei"}}]
[null,null,"Carne de vită","Carne",null,null,{"$f":"IFERROR(SUM(ListăDeCumpărături[Cantitate]*ListăDeCumpărături[Preț]), \"\")","v":{"v":0,"d":"0.00 lei"}}]
[null,null,"Carne de pasăre","Carne",null,null,{"$f":"IFERROR(SUM(ListăDeCumpărături[Cantitate]*ListăDeCumpărături[Preț]), \"\")","v":{"v":0,"d":"0.00 lei"}}]
[null,null,"Șuncă","Carne",null,null,{"$f":"IFERROR(SUM(ListăDeCumpărături[Cantitate]*ListăDeCumpărături[Preț]), \"\")","v":{"v":0,"d":"0.00 lei"}}]
[null,null,"Suc","Băuturi",null,null,{"$f":"IFERROR(SUM(ListăDeCumpărături[Cantitate]*ListăDeCumpărături[Preț]), \"\")","v":{"v":0,"d":"0.00 lei"}}]
[null,null,"Cafea","Băuturi",null,null,{"$f":"IFERROR(SUM(ListăDeCumpărături[Cantitate]*ListăDeCumpărături[Preț]), \"\")","v":{"v":0,"d":"0.00 lei"}}]
[null,null,"Ceai","Băuturi",null,null,{"$f":"IFERROR(SUM(ListăDeCumpărături[Cantitate]*ListăDeCumpărături[Preț]), \"\")","v":{"v":0,"d":"0.00 lei"}}]
[null,null,"Apă","Băuturi",null,null,{"$f":"IFERROR(SUM(ListăDeCumpărături[Cantitate]*ListăDeCumpărături[Preț]), \"\")","v":{"v":0,"d":"0.00 lei"}}]
[null,null,"Tăieței","Paste",null,null,{"$f":"IFERROR(SUM(ListăDeCumpărături[Cantitate]*ListăDeCumpărături[Preț]), \"\")","v":{"v":0,"d":"0.00 lei"}}]
[null,null,"Orez","Paste",null,null,{"$f":"IFERROR(SUM(ListăDeCumpărături[Cantitate]*ListăDeCumpărături[Preț]), \"\")","v":{"v":0,"d":"0.00 lei"}}]
[null,null,"Conserve","Supă",null,null,{"$f":"IFERROR(SUM(ListăDeCumpărături[Cantitate]*ListăDeCumpărături[Preț]), \"\")","v":{"v":0,"d":"0.00 lei"}}]
[null,null,"Praf de budincă","Supă",null,null,{"$f":"IFERROR(SUM(ListăDeCumpărături[Cantitate]*ListăDeCumpărături[Preț]), \"\")","v":{"v":0,"d":"0.00 lei"}}]
[null,null,"Pâine","Brutărie",null,null,{"$f":"IFERROR(SUM(ListăDeCumpărături[Cantitate]*ListăDeCumpărături[Preț]), \"\")","v":{"v":0,"d":"0.00 lei"}}]
[null,null,"Chipsuri","Gustări",null,null,{"$f":"IFERROR(SUM(ListăDeCumpărături[Cantitate]*ListăDeCumpărături[Preț]), \"\")","v":{"v":0,"d":"0.00 lei"}}]
[null,null,"Covrigei","Gustări",null,null,{"$f":"IFERROR(SUM(ListăDeCumpărături[Cantitate]*ListăDeCumpărături[Preț]), \"\")","v":{"v":0,"d":"0.00 lei"}}]
[null,null,"Înghețată","Gustări",null,null,{"$f":"IFERROR(SUM(ListăDeCumpărături[Cantitate]*ListăDeCumpărături[Preț]), \"\")","v":{"v":0,"d":"0.00 lei"}}]
[null,null,"Fursecuri","Gustări",null,null,{"$f":"IFERROR(SUM(ListăDeCumpărături[Cantitate]*ListăDeCumpărături[Preț]), \"\")","v":{"v":0,"d":"0.00 lei"}}]
[null,null,"Farfurii de hârtie","Consumabile",null,null,{"$f":"IFERROR(SUM(ListăDeCumpărături[Cantitate]*ListăDeCumpărături[Preț]), \"\")","v":{"v":0,"d":"0.00 lei"}}]
[null,null,"Șervețele","Consumabile",null,null,{"$f":"IFERROR(SUM(ListăDeCumpărături[Cantitate]*ListăDeCumpărături[Preț]), \"\")","v":{"v":0,"d":"0.00 lei"}}]
[{"$nulls":6},{"$f":"SUBTOTAL(109,ListăDeCumpărături[Preț extins])","v":{"v":0,"d":"0.00 lei"}}]